bitfinex/quotes_SOLUSD_20241117
["timestamp","ask_amount","ask_price","bid_price","bid_amount"]
[1731860952487,4.62005462,233.9,233.83,7.58346136]
[1731860956304,4.62005462,233.9,233.83,11.85996136]
[1731860960010,16.1014,233.95,233.83,11.85996136]
[1731860960187,11.85806136,233.94,233.85,7.58346136]
[1731860962591,0.12549,233.93,233.86,14.9661]
[1731860964501,4.2743,233.96,233.87,7.58346136]
[1731860965611,4.2743,233.96,233.88,14.9648]
[1731860966014,4.2743,233.96,233.89,7.58346136]
[1731860966521,4.2743,233.96,233.89,11.85886136]
[1731860966887,4.2743,233.96,233.89,22.54756136]
[1731860967700,7.58346136,233.97,233.89,22.54756136]
[1731860968114,7.58346136,233.93,233.82,24.2767]
[1731860968315,7.58346136,233.93,233.84,7.58346136]
[1731860968514,7.58346136,233.93,233.85,20.0]
[1731860968700,11.85826136,233.93,233.85,34.9668]
[1731860969303,11.85826136,233.93,233.85,14.9668]
[1731860970796,0.12549,233.9,233.81,10.6923]
[1731860970998,0.12549,233.88,233.81,18.27576136]
[1731860971794,0.25098,233.86,233.77,10.6942]
[1731860972012,0.25098,233.86,233.77,18.27766136]
[1731860972400,0.12549,233.86,233.77,18.27766136]
[1731860972621,0.12549,233.87,233.81,7.58346136]
[1731860973417,19.8958,233.9,233.83,7.58346136]
[1731860976104,4.2754,233.9,233.85,7.58346136]
[1731860976903,6.0399,233.94,233.87,7.58346136]
[1731860977795,10.3146,233.94,233.87,7.58346136]
[1731860978423,0.12549,233.93,233.87,7.58346136]
[1731860981101,4.40039,233.93,233.87,7.58346136]
[1731860984027,4.40039,233.93,233.85,7.58346136]
[1731860984907,4.40039,233.93,233.87,7.58346136]
[1731860987615,4.40039,233.93,233.85,7.58346136]
[1731860989815,4.40039,233.93,233.85,11.85966136]
[1731860996320,4.2751,233.91,233.85,7.58346136]
[1731860996524,0.12549,233.9,233.85,7.58346136]
[1731860996724,0.09367462,233.87,233.77,10.6938]
[1731860997042,0.12549,233.85,233.77,18.27726136]
[1731860997924,0.12549,233.83,233.77,14.9713]
[1731860998113,0.12549,233.83,233.77,10.6938]
[1731860999026,7.58346136,233.82,233.73,7.58346136]
[1731860999235,0.12549,233.81,233.73,7.58346136]
[1731860999923,4.2771,233.8,233.73,7.58346136]
[1731861000527,0.12549,233.81,233.75,7.58346136]
[1731861000834,0.12549,233.8,233.75,7.58346136]
[1731861001423,0.12549,233.8,233.73,18.27956136]
[1731861001811,4.40269,233.8,233.73,18.27956136]
[1731861002114,4.40269,233.8,233.73,22.55796136]
[1731861004017,4.40269,233.8,233.75,7.58346136]
[1731861004218,4.49606462,233.82,233.66,14.979]
[1731861004428,4.49606462,233.82,233.74,7.58346136]
[1731861005012,4.49606462,233.82,233.76,7.58346136]
[1731861006623,4.40239,233.82,233.76,11.86126136]
[1731861007137,4.40239,233.82,233.76,7.58346136]
[1731861007312,7.58346136,233.78,233.72,10.6963]
[1731861007637,7.58346136,233.78,233.71,7.58346136]
[1731861007935,7.70895136,233.8,233.71,11.86216136]
[1731861008138,4.2769,233.82,233.75,7.58346136]
[1731861008432,0.12549,233.81,233.75,7.58346136]
[1731861008637,4.40249,233.81,233.75,7.58346136]
[1731861009041,0.12549,233.79,233.71,22.55906136]
[1731861009425,0.12549,233.79,233.71,18.28046136]
[1731861009617,0.12549,233.77,233.69,7.58346136]
[1731861009815,0.25098,233.77,233.69,7.58346136]
[1731861010116,0.34465462,233.76,233.67,22.56146136]
[1731861010320,7.58346136,233.69,233.59,14.9835]
[1731861010543,0.21916462,233.66,233.57,11.86466136]
[1731861010726,0.12549,233.62,233.55,0.484925]
[1731861011251,0.25098,233.62,233.55,0.484925]
[1731861011740,0.21916462,233.61,233.55,0.484925]
[1731861011941,0.09367462,233.57,233.55,0.484925]
[1731861012119,0.34465462,233.56,233.55,0.484925]
[1731861012317,30.21263862,233.56,233.55,0.484925]
[1731861012876,6.0911,233.56,233.55,0.484925]
[1731861014433,6.43575462,233.56,233.55,0.484925]
[1731861016326,37.79609998,233.56,233.55,0.484925]
[1731861016722,53.28539998,233.56,233.55,0.484925]
[1731861016930,0.09367462,233.53,233.39,10.7116]
[1731861017149,7.58346136,233.47,233.39,10.7116]
[1731861017448,0.21916462,233.45,233.38,7.58346136]
[1731861017647,0.12549,233.44,233.38,7.58346136]
[1731861018146,0.21916462,233.43,233.33,10.714]
[1731861018347,0.12549,233.42,233.4,7.58346136]
[1731861018553,4.40759,233.53,233.4,11.86786136]
[1731861018846,0.12549,233.51,233.47,7.58346136]
[1731861019346,0.12549,233.51,233.45,7.58346136]
[1731861019651,0.12549,233.5,233.45,7.58346136]
[1731861019830,0.12549,233.5,233.47,7.58346136]
[1731861020232,0.12549,233.5,233.48,11.8867293]
[1731861020625,6.3206,233.54,233.48,11.8867293]
[1731861020844,6.3206,233.54,233.51,11.8867293]
[1731861021128,6.3206,233.54,233.42,4.2839]
[1731861021129,6.3206,233.6,233.53,11.8867293]
[1731861021329,6.3206,233.6,233.55,11.8867293]
[1731861021953,6.3206,233.6,233.57,11.8867293]
[1731861022153,10.6003,233.66,233.59,11.8867293]
[1731861022333,0.09367462,233.65,233.59,11.8867293]
[1731861023240,24.027864,233.64,233.55,11.8867293]
[1731861023443,24.027864,233.64,233.57,11.8867293]
[1731861023444,0.25098,233.64,233.57,11.8867293]
[1731861023649,24.027864,233.65,233.59,11.8867293]
[1731861023844,10.40413791,233.66,233.59,11.8867293]
[1731861024152,6.12443791,233.66,233.61,11.8867293]
[1731861025531,28.4819293,233.73,233.65,11.8867293]
[1731861025729,20.8737,233.73,233.65,11.8867293]
[1731861025946,16.1648293,233.75,233.67,11.8867293]
[1731861026528,6.3865,233.76,233.69,11.8867293]
[1731861026727,10.6644,233.76,233.69,11.8867293]
[1731861027034,0.09367462,233.75,233.69,11.8867293]
[1731861027536,6.3865,233.76,233.65,10.6997]
[1731861027744,4.2772,233.8,233.71,11.8867293]
[1731861028047,4.2772,233.8,233.73,11.8867293]
[1731861028435,0.09367462,233.79,233.73,11.8867293]
[1731861028834,24.12153862,233.79,233.73,11.8867293]
[1731861029251,0.34465462,233.79,233.73,11.8867293]
[1731861029444,0.34465462,233.77,233.69,11.8867293]
[1731861029626,0.34465462,233.75,233.67,11.8867293]
[1731861029827,0.34465462,233.75,233.66,10.6993]
[1731861029828,0.12549,233.75,233.69,11.8867293]
[1731861030337,0.34465462,233.76,233.69,11.8867293]
[1731861030528,0.34465462,233.76,233.71,11.8867293]
[1731861030950,0.34465462,233.76,233.69,4.2791]
[1731861031149,0.34465462,233.76,233.69,11.8867293]
[1731861031658,0.34465462,233.74,233.67,11.8867293]
[1731861034046,24.12153862,233.72,233.61,10.7015]
[1731861034343,24.12153862,233.69,233.59,11.8867293]
[1731861034554,0.25098,233.67,233.59,11.8867293]
[1731861035135,0.25098,233.67,233.59,16.1676293]
[1731861035451,0.12549,233.65,233.59,11.8867293]
[1731861036355,0.12549,233.65,233.62,11.8867293]
[1731861036545,0.12549,233.65,233.6,11.8867293]
[1731861037557,0.12549,233.66,233.62,11.8867293]
[1731861037940,0.12549,233.68,233.62,11.8867293]
[1731861038136,4.40479,233.68,233.62,11.8867293]
[1731861038467,0.12549,233.68,233.62,11.8867293]
[1731861039760,24.12153862,233.67,233.6,11.8867293]
[1731861040067,36.00826792,233.67,233.59,10.7025]
[1731861040244,0.34465462,233.65,233.59,10.7025]
[1731861040543,0.34465462,233.65,233.53,15.8792]
[1731861040544,0.09367462,233.62,233.56,11.8867293]
[1731861040752,0.34465462,233.62,233.56,11.8867293]
[1731861040952,24.12153862,233.62,233.54,26.8729293]
[1731861041754,28.40213862,233.62,233.54,22.5912293]
[1731861041953,28.40213862,233.62,233.54,26.8731293]
[1731861043047,28.40213862,233.62,233.56,11.8867293]
[1731861050275,16.1658293,233.69,233.6,11.8867293]
[1731861051249,0.09367462,233.68,233.6,11.8867293]
[1731861051452,24.12153862,233.68,233.62,11.8867293]
[1731861052059,6.3545,233.7,233.64,11.8867293]
[1731861052377,4.2786,233.72,233.66,11.8867293]
[1731861053355,11.98040392,233.71,233.64,11.8867293]
[1731861053550,0.09367462,233.69,233.62,11.8867293]
[1731861054154,0.09367462,233.69,233.64,11.8867293]
[1731861055265,0.09367462,233.67,233.64,11.8867293]
[1731861055577,0.21916462,233.67,233.64,11.8867293]
[1731861055773,0.21916462,233.67,233.62,11.8867293]
[1731861055977,0.09367462,233.65,233.6,11.8867293]
[1731861056161,0.21916462,233.65,233.58,11.8867293]
[1731861056571,0.21916462,233.65,233.6,11.8867293]
[1731861057982,4.49906462,233.65,233.6,11.8867293]
[1731861058559,0.21916462,233.65,233.6,11.8867293]
[1731861059463,4.49906462,233.65,233.6,11.8867293]
[1731861060888,4.49906462,233.65,233.56,11.8867293]
[1731861060889,0.21916462,233.63,233.56,11.8867293]
[1731861061057,0.12549,233.62,233.56,11.8867293]
[1731861061586,0.12549,233.63,233.6,11.8867293]
[1731861061968,0.12549,233.64,233.6,11.8867293]
[1731861062657,0.25098,233.67,233.6,16.1674293]
[1731861063065,6.2031,233.69,233.64,11.8867293]
[1731861063288,4.2789,233.71,233.64,11.8867293]
[1731861063462,0.09367462,233.7,233.64,11.8867293]
[1731861063882,16.2762,233.73,233.64,11.8867293]
[1731861064081,20.5546,233.73,233.64,11.8867293]
[1731861064382,20.5546,233.73,233.6,14.9827]
[1731861064383,4.2782,233.75,233.68,11.8867293]
[1731861064569,4.2782,233.75,233.7,11.8867293]
[1731861064777,4.2778,233.77,233.7,11.8867293]
[1731861065280,0.09367462,233.76,233.7,11.8867293]
[1731861066255,0.12549,233.75,233.7,11.8867293]
[1731861069478,0.09367462,233.74,233.7,11.8867293]
[1731861069665,0.09367462,233.72,233.65,11.8867293]
[1731861069862,0.09367462,233.7,233.65,11.8867293]
[1731861070086,0.12549,233.69,233.65,11.8867293]
[1731861070288,0.12549,233.69,233.63,11.8867293]
[1731861070881,0.12549,233.69,233.65,11.8867293]
[1731861071183,0.12549,233.7,233.65,11.8867293]
[1731861071384,0.25098,233.72,233.65,16.1664293]
[1731861072589,0.25098,233.72,233.67,11.8867293]
[1731861073986,4.52958,233.72,233.67,11.8867293]
[1731861074195,23.87055862,233.71,233.65,11.8867293]
[1731861074395,0.12549,233.7,233.65,11.8867293]
[1731861074882,0.12549,233.71,233.67,11.8867293]
[1731861075405,0.21916462,233.7,233.67,11.8867293]
[1731861075568,0.12549,233.69,233.65,11.8867293]
[1731861075769,0.12549,233.69,233.63,22.5873293]
[1731861077275,4.40469,233.69,233.63,22.5873293]
[1731861077475,4.40469,233.69,233.63,26.8675293]
[1731861077976,0.12549,233.69,233.65,11.8867293]
[1731861079212,25.7608,233.78,233.65,11.8867293]
[1731861079213,6.67739285,233.85,233.73,20.08213846]
[1731861079504,16.1624293,233.88,233.78,11.8867293]
[1731861079697,11.8867293,233.84,233.74,11.8867293]
[1731861079882,0.09367462,233.83,233.74,11.8867293]
[1731861080070,11.8867293,233.82,233.72,11.8867293]
[1731861080270,11.8867293,233.84,233.74,11.8867293]
[1731861080495,0.09367462,233.81,233.72,11.8867293]
[1731861080693,0.09367462,233.77,233.7,11.8867293]
[1731861081000,0.09367462,233.75,233.7,11.8867293]
[1731861081578,0.21916462,233.75,233.7,11.8867293]
[1731861081996,23.99604862,233.73,233.66,11.8867293]
[1731861082178,0.21916462,233.71,233.66,11.8867293]
[1731861084206,0.12549,233.71,233.68,11.8867293]
[1731861084412,6.2839,233.75,233.7,11.8867293]
[1731861084704,0.12549,233.74,233.7,11.8867293]
[1731861084910,24.027864,233.74,233.68,11.8867293]
[1731861085093,0.12549,233.72,233.66,11.8867293]
[1731861085295,0.09367462,233.71,233.64,11.8867293]
[1731861085494,0.21916462,233.69,233.64,11.8867293]
[1731861085684,0.12549,233.68,233.64,11.8867293]
[1731861086102,0.09367462,233.65,233.58,11.8867293]
[1731861086294,0.12549,233.64,233.58,11.8867293]
[1731861087489,24.12153862,233.58,233.44,40.23322356]
[1731861087692,24.12153862,233.58,233.41,55.77972356]
[1731861087693,24.12153862,233.54,233.46,11.8867293]
[1731861088190,0.12549,233.54,233.48,19.01725812]
[1731861088400,0.12549,233.55,233.48,19.01725812]
[1731861088608,0.25098,233.59,233.5,19.01725812]
[1731861089117,0.09367462,233.58,233.5,19.01725812]
[1731861090783,0.09367462,233.56,233.48,19.01725812]
[1731861091194,0.09367462,233.54,233.48,19.01725812]
[1731861093012,19.11093274,233.54,233.44,19.01725812]
[1731861093311,0.12549,233.47,233.4,19.01725812]
[1731861093494,0.25098,233.47,233.4,19.01725812]
[1731861093696,0.09367462,233.46,233.4,19.01725812]
[1731861093903,0.25098,233.45,233.38,19.01725812]
[1731861094291,0.25098,233.45,233.36,19.01725812]
[1731861094499,0.21916462,233.44,233.36,19.01725812]
[1731861095447,0.25098,233.47,233.4,19.01725812]
[1731861095718,0.12549,233.48,233.44,19.01725812]
[1731861096016,0.09367462,233.45,233.37,19.01725812]
[1731861096218,0.09367462,233.43,233.35,19.01725812]
[1731861096527,0.34465462,233.43,233.35,19.01725812]
[1731861096695,24.12153862,233.43,233.35,19.01725812]
[1731861097101,24.12153862,233.43,233.34,10.7139]
[1731861097102,0.34465462,233.41,233.34,10.7139]
[1731861097299,0.34465462,233.41,233.35,19.01725812]
[1731861097903,4.40989,233.41,233.35,19.01725812]
[1731861098109,0.25098,233.42,233.35,19.01725812]
[1731861098424,19.26823812,233.42,233.33,19.01725812]
[1731861098602,19.26823812,233.42,233.31,4.770825]
[1731861098603,0.21916462,233.41,233.35,19.01725812]
[1731861098920,0.12549,233.4,233.35,19.01725812]
[1731861099920,19.01725812,233.46,233.37,19.01725812]
[1731861100112,6.001,233.49,233.41,19.01725812]
[1731861100303,10.2838,233.49,233.43,19.01725812]
[1731861101399,0.09367462,233.48,233.33,20.1]
[1731861101613,0.09367462,233.48,233.43,19.01725812]
[1731861102017,0.21916462,233.48,233.43,19.01725812]
[1731861103415,4.2817,233.55,233.47,19.01725812]
[1731861104104,0.09367462,233.54,233.47,19.01725812]
[1731861104305,4.2817,233.55,233.47,19.01725812]
[1731861104899,23.902374,233.54,233.47,19.01725812]
[1731861105104,0.12549,233.52,233.47,19.01725812]
[1731861106828,4.40779,233.52,233.47,19.01725812]
[1731861109124,4.40779,233.52,233.45,19.01725812]
[1731861109510,0.21916462,233.5,233.45,19.01725812]
[1731861109716,0.12549,233.5,233.45,19.01725812]
[1731861112102,10.3762,233.56,233.48,19.01725812]
[1731861112421,6.0946,233.56,233.5,19.01725812]
[1731861112627,6.0946,233.56,233.52,19.01725812]
[1731861113210,4.2812,233.58,233.52,19.01725812]
[1731861113924,0.09367462,233.57,233.52,19.01725812]
[1731861114724,0.21916462,233.58,233.52,19.01725812]
[1731861114938,4.40679,233.57,233.52,19.01725812]
[1731861115814,4.40679,233.57,233.5,19.01725812]
[1731861116011,23.99604862,233.56,233.48,19.01725812]
[1731861116211,0.25098,233.53,233.46,19.01725812]
[1731861116527,0.12549,233.51,233.46,19.01725812]
[1731861116709,0.12549,233.51,233.45,10.7089]
[1731861118726,4.40799,233.51,233.45,10.7089]
[1731861120134,0.34465462,233.48,233.4,29.72835812]
[1731861120307,23.30005812,233.49,233.35,6.2835]
[1731861120308,0.34465462,233.46,233.38,19.01725812]
[1731861121333,22.4171,233.51,233.44,19.01725812]
[1731861121511,6.5843,233.51,233.46,19.01725812]
[1731861121725,4.2824,233.52,233.46,19.01725812]
[1731861123145,0.12549,233.51,233.46,19.01725812]
[1731861123447,0.25098,233.54,233.48,19.01725812]
[1731861123644,6.5843,233.56,233.5,19.01725812]
[1731861123950,6.5843,233.56,233.45,14.9924]
[1731861123951,4.281,233.59,233.52,19.01725812]
[1731861124324,0.09367462,233.58,233.52,19.01725812]
[1731861124723,6.5843,233.62,233.54,19.01725812]
[1731861124933,0.09367462,233.61,233.56,19.01725812]
[1731861125141,19.11093274,233.61,233.54,19.01725812]
[1731861125352,4.2808,233.6,233.54,19.01725812]
[1731861126031,0.12549,233.59,233.54,19.01725812]
[1731861127224,0.12549,233.61,233.56,19.01725812]
[1731861127430,6.5843,233.62,233.56,19.01725812]
[1731861127822,6.5843,233.62,233.54,19.01725812]
[1731861127823,0.09367462,233.61,233.54,19.01725812]
[1731861128025,10.8647,233.62,233.54,19.01725812]
[1731861128242,10.8647,233.62,233.54,23.29905812]
[1731861128642,10.8647,233.62,233.54,19.01725812]
[1731861129430,0.12549,233.61,233.54,19.01725812]
[1731861129950,0.12549,233.61,233.54,23.29895812]
[1731861130529,0.12549,233.61,233.58,19.01725812]
[1731861130744,4.2796,233.67,233.6,19.01725812]
[1731861130942,4.2796,233.67,233.62,19.01725812]
[1731861131226,6.5843,233.69,233.62,33.99865812]
[1731861131425,4.2789,233.71,233.64,19.01725812]
[1731861132238,4.37207462,233.73,233.64,19.01725812]
[1731861132855,0.09367462,233.71,233.64,19.01725812]
[1731861133035,0.09367462,233.71,233.58,16.2985]
[1731861133036,19.01725812,233.74,233.66,19.01725812]
[1731861133346,6.5843,233.75,233.66,19.01725812]
[1731861133347,10.8624,233.75,233.66,19.01725812]
[1731861133555,10.8624,233.75,233.68,19.01725812]
[1731861133744,23.29515812,233.76,233.68,19.01725812]
[1731861133943,0.09367462,233.75,233.68,19.01725812]
[1731861134146,23.29515812,233.76,233.68,19.01725812]
[1731861134443,0.09367462,233.75,233.68,19.01725812]
[1731861135037,0.09367462,233.75,233.68,23.29645812]
[1731861135436,0.21916462,233.75,233.7,19.01725812]
[1731861137153,25.38375812,233.8,233.72,19.01725812]
[1731861137459,4.2772,233.8,233.74,19.01725812]
[1731861138250,19.01725812,233.84,233.76,19.01725812]
[1731861138450,4.2766,233.83,233.76,19.01725812]
[1731861139132,0.09367462,233.82,233.74,19.01725812]
[1731861139337,0.34465462,233.82,233.74,19.01725812]
[1731861140041,19.01725812,233.86,233.78,19.01725812]
[1731861140365,19.01725812,233.88,233.8,23.29425812]
[1731861140564,0.09367462,233.87,233.8,23.29425812]
[1731861141157,23.29265812,233.9,233.82,19.01725812]
[1731861141352,19.01725812,233.92,233.82,19.01725812]
[1731861142258,19.01725812,233.94,233.86,19.01725812]
[1731861142444,23.29145812,233.96,233.88,19.01725812]
[1731861143171,19.01725812,234.0,233.9,19.01725812]
[1731861144136,19.01725812,234.0,233.92,19.01725812]
[1731861144357,23.29085812,234.0,233.92,19.01725812]
[1731861144759,0.09367462,233.99,233.92,19.01725812]
[1731861145458,0.21916462,233.99,233.92,19.01725812]
[1731861145669,0.21916462,233.99,233.94,19.01725812]
[1731861146462,6.3665,234.11,233.98,19.01725812]
[1731861146650,19.01725812,234.1,234.02,19.01725812]
[1731861147445,23.28885812,234.1,234.02,19.01725812]
[1731861147849,0.09367462,234.08,234.02,19.01725812]
[1731861148072,0.21916462,234.08,234.02,19.01725812]
[1731861148456,4.49126462,234.08,234.02,19.01725812]
[1731861149169,4.36577462,234.08,234.02,19.01725812]
[1731861149868,4.2717,234.1,234.04,19.01725812]
[1731861151247,0.09367462,234.11,234.04,19.01725812]
[1731861151767,0.09367462,234.11,234.06,19.01725812]
[1731861151942,19.01725812,234.18,234.08,19.01725812]
[1731861152148,19.01725812,234.18,234.1,19.01725812]
[1731861152845,19.01725812,234.18,234.0,19.11725812]
[1731861152846,25.34645812,234.22,234.12,19.01725812]
[1731861153044,19.01725812,234.24,234.12,19.01725812]
[1731861153347,4.2694,234.23,234.12,39.01725812]
[1731861153548,4.2689,234.25,234.12,58.03451624]
[1731861153760,4.2687,234.26,234.12,81.8935387]
[1731861153948,4.2682,234.29,234.22,19.01725812]
[1731861154153,23.28495812,234.32,234.24,19.01725812]
[1731861154659,0.09367462,234.29,234.22,19.01725812]
[1731861154845,0.09367462,234.25,234.18,19.01725812]
[1731861155246,19.01725812,234.24,234.16,19.01725812]
[1731861155456,19.01725812,234.21,234.14,29.69425812]
[1731861155654,14.9375,234.31,234.09,10.6796]
[1731861155655,19.01725812,234.17,234.09,10.6796]
[1731861155871,0.12549,234.2,234.09,33.96865812]
[1731861156088,0.09367462,234.18,234.11,19.01725812]
[1731861157987,19.01725812,234.19,234.11,19.01725812]
[1731861158202,4.2699,234.2,234.11,23.28865812]
[1731861159075,19.01725812,234.21,234.13,19.01725812]
[1731861159802,19.01725812,234.21,234.11,29.69595812]
[1731861159803,0.21916462,234.2,234.11,29.69595812]
[1731861159995,19.01725812,234.18,234.11,29.69595812]
[1731861160197,19.01725812,234.18,234.11,33.96735812]
[1731861160532,0.09367462,234.19,234.11,33.96735812]
[1731861161512,19.01725812,234.17,234.08,19.01725812]
[1731861162309,0.09367462,234.16,234.08,19.01725812]
[1731861162619,6.1553,234.2,234.04,4.2727]
[1731861162620,0.09367462,234.12,234.04,19.01725812]
[1731861163288,0.09367462,234.12,234.04,23.28985812]
[1731861163801,23.28795812,234.15,234.06,19.01725812]
[1731861164007,19.01725812,234.17,234.08,19.01725812]
[1731861164411,0.25098,234.18,234.08,19.01725812]
[1731861164592,0.09367462,234.17,234.08,19.01725812]
[1731861165390,19.14274812,234.18,234.08,33.96925812]
[1731861165710,4.2701,234.19,234.1,19.01725812]
[1731861166517,4.2701,234.19,234.1,23.28875812]
[1731861166694,0.09367462,234.18,234.12,19.01725812]
[1731861167276,19.01725812,234.23,234.14,19.01725812]
[1731861168289,4.2692,234.24,234.16,19.01725812]
[1731861168482,19.01725812,234.25,234.16,19.01725812]
[1731861168880,0.09367462,234.24,234.16,19.01725812]
[1731861169475,4.36297462,234.24,234.16,19.01725812]
[1731861169671,0.09367462,234.22,234.14,19.01725812]
[1731861169871,0.09367462,234.18,234.1,33.96795812]
[1731861171794,4.36387462,234.18,234.1,33.96795812]
[1731861172289,4.36387462,234.18,234.03,21.3643]
[1731861172290,0.09367462,234.16,234.08,23.28915812]
[1731861172492,19.14274812,234.17,234.05,10.6812]
[1731861172493,0.09367462,234.14,234.06,20.0]
[1731861173191,0.09367462,234.14,234.07,23.28935812]
[1731861174568,0.09367462,234.14,234.01,0.08213846]
[1731861174569,0.21916462,234.12,234.03,19.01725812]
[1731861174775,0.09367462,234.1,234.03,19.01725812]
[1731861175486,0.09367462,234.1,234.01,19.01725812]
[1731861175676,4.36537462,234.1,234.02,4.2731]
[1731861175876,0.09367462,234.06,234.0,10.6836]
[1731861176403,0.21916462,234.06,234.0,10.6836]
[1731861176694,0.09367462,234.06,234.0,10.6836]
[1731861178797,4.36617462,234.06,234.0,10.6836]
[1731861180524,0.09367462,234.02,233.94,19.01725812]
[1731861180674,0.09367462,234.0,233.93,4.2747]
[1731861180874,0.09367462,234.0,233.93,14.9616]
[1731861181478,0.21916462,234.0,233.92,19.01725812]
[1731861181808,0.21916462,234.0,233.91,4.275]
[1731861181809,0.09367462,233.98,233.91,4.275]
[1731861183008,4.36757462,233.98,233.91,4.275]
[1731861183191,0.09367462,233.98,233.91,4.275]
[1731861186287,0.09367462,233.98,233.91,11.84178745]
[1731861187403,0.09367462,233.98,233.92,4.2749]
[1731861188126,11.93546207,233.98,233.92,4.2749]
[1731861188793,0.09367462,233.98,233.92,4.2749]
[1731861188999,0.21916462,233.99,233.92,14.9623]
[1731861192314,12.06095207,233.99,233.92,14.9623]
[1731861193297,0.09367462,233.92,233.82,15.9371]
[1731861193498,0.09367462,233.9,233.82,4.2767]
[1731861193706,6.0719,233.93,233.87,11.84178745]
[1731861194524,0.09367462,233.92,233.87,11.84178745]
[1731861194902,0.09367462,233.92,233.87,16.11748745]
[1731861195330,4.2739,233.98,233.89,11.84178745]
[1731861195501,4.2739,233.98,233.91,11.84178745]
[1731861196403,4.2739,233.98,233.91,16.11678745]
[1731861196827,0.21916462,233.97,233.91,4.275]
[1731861197512,11.93546207,233.95,233.87,26.80708745]
[1731861197826,11.93546207,233.93,233.87,14.9654]
[1731861198237,0.09367462,233.94,233.87,14.9654]
[1731861198406,0.09367462,233.94,233.87,26.80718745]
[1731861199108,0.21916462,233.95,233.87,26.80718745]
[1731861199425,0.09367462,233.94,233.89,11.84178745]
[1731861200404,0.09367462,233.95,233.89,11.84178745]
[1731861201018,4.39959,233.97,233.89,11.84178745]
[1731861201521,0.09367462,233.96,233.9,4.2753]
[1731861202620,0.12549,233.98,233.91,11.84178745]
[1731861203299,0.09367462,233.97,233.93,11.84178745]
[1731861203705,0.09367462,233.97,233.94,4.2746]
[1731861203919,0.09367462,233.97,233.93,16.11648745]
[1731861207834,0.12549,233.96,233.9,10.6883]
[1731861208062,6.0719,233.99,233.93,11.84178745]
[1731861208537,0.21916462,233.98,233.93,11.84178745]
[1731861209520,6.1741,234.05,233.97,11.84178745]
[1731861209720,6.1741,234.05,234.0,16.11518745]
[1731861209920,0.09367462,234.04,234.0,16.11518745]
[1731861210214,6.1741,234.05,234.0,16.11518745]
[1731861210918,0.21916462,234.04,234.0,16.11518745]
[1731861214438,0.09367462,234.04,234.0,16.11518745]
[1731861215138,0.09367462,234.04,234.0,26.79888745]
[1731861215350,0.09367462,234.07,234.0,26.79888745]
[1731861215645,0.21916462,234.07,234.0,26.79888745]
[1731861215933,0.09367462,234.05,234.0,26.79888745]
[1731861217611,0.21916462,234.06,234.0,26.79888745]
[1731861217817,6.2064,234.1,234.04,11.84178745]
[1731861218314,6.2064,234.1,234.06,11.84178745]
[1731861218624,6.2064,234.1,234.05,20.0]
[1731861218625,11.84178745,234.2,234.08,11.84178745]
[1731861218824,0.09367462,234.19,234.12,11.84178745]
[1731861219413,0.09367462,234.19,234.13,4.2711]
[1731861219919,0.21916462,234.19,234.13,4.2711]
[1731861220121,11.84178745,234.2,234.13,4.2711]
[1731861220814,11.84178745,234.2,234.13,14.9489]
[1731861221034,0.09367462,234.2,234.13,14.9489]
[1731861221232,22.217,234.21,234.13,14.9489]
[1731861221410,0.12549,234.2,234.13,14.9489]
[1731861221615,0.09367462,234.19,234.13,14.9489]
[1731861222326,0.09367462,234.19,234.14,11.84178745]
[1731861222619,0.21916462,234.2,234.14,11.84178745]
[1731861222933,34.05878745,234.26,234.16,11.84178745]
[1731861223233,0.09367462,234.24,234.16,11.84178745]
[1731861223631,0.09367462,234.24,234.18,11.84178745]
[1731861224031,34.05878745,234.26,234.18,11.84178745]
[1731861224233,0.25098,234.25,234.18,11.84178745]
[1731861224429,0.25098,234.25,234.18,16.11198745]
[1731861224642,0.09367462,234.24,234.18,16.11198745]
[1731861224945,0.21916462,234.22,234.16,10.6763]
[1731861225238,11.93546207,234.2,234.12,11.84178745]
[1731861225938,0.34465462,234.21,234.12,11.84178745]
[1731861226125,0.09367462,234.19,234.14,11.84178745]
[1731861226322,11.84178745,234.21,234.14,11.84178745]
[1731861226833,0.09367462,234.2,234.14,11.84178745]
[1731861227338,0.12549,234.22,234.15,4.2707]
[1731861227339,0.09367462,234.21,234.15,4.2707]
[1731861227841,0.09367462,234.21,234.15,14.9476]
[1731861229128,11.84178745,234.25,234.16,11.84178745]
[1731861229334,0.12549,234.24,234.16,11.84178745]
[1731861230139,0.09367462,234.23,234.16,11.84178745]
[1731861230339,0.09367462,234.23,234.17,4.2704]
[1731861230747,11.93546207,234.23,234.17,4.2704]
[1731861231849,11.93546207,234.23,234.15,14.9476]
[1731861232234,11.93546207,234.21,234.15,14.9476]